fUSD/lending_fUSD_20251227
["ID","MTS","AMOUNT","RATE_DAILY","PERIOD"]
[399874619,1766793803665,-193.45126844,0.00012032,2]
[399874620,1766793803690,-264.39759919,0.00012079,2]
[399874636,1766794231897,-300.0,0.00012156,2]
[399874637,1766794231908,-250.0,0.00012156,2]
[399874638,1766794231919,-300.0,0.00012194,2]
[399874639,1766794231929,-65.89127462,0.00012194,2]
[399874640,1766794231940,-303.21383915,0.00012194,2]
[399874641,1766794231950,-49.38495414,0.00012232,2]
[399874642,1766794231962,-450.61504586,0.00012232,2]
[399874643,1766794231972,-2365.47,0.00012239,2]
[399874644,1766794231982,-166.66,0.00012329,2]
[399874645,1766794231992,-150.0,0.00012349,2]
[399874646,1766794232002,-644.75,0.00012408,2]
[399874648,1766794232011,-354.49633654,0.00012536,2]
[399874650,1766794232022,-166.66,0.00012549,2]
[399874651,1766794232032,-1200.0,0.00012633,2]
[399874653,1766794232042,-300.0,0.00012633,2]
[399874655,1766794232054,-300.0,0.00012633,2]
[399874657,1766794232063,-1200.0,0.00012633,2]
[399874659,1766794232073,-150.0,0.00012634,2]
[399874661,1766794232084,-266234.09494594,0.00012635,2]
[399874663,1766794232096,-2495.34839139,0.00012635,2]
[399874666,1766794232108,-5613.40535589,0.00012635,2]
[399874668,1766794232119,-3849.3494144,0.00012635,2]
[399874670,1766794232131,-1079.14363337,0.00012635,2]
[399874672,1766794232142,-383.77616865,0.00012635,2]
[399874674,1766794232154,-1916.93521517,0.00012635,2]
[399874677,1766794232170,-825.596331,0.00012635,2]
[399874701,1766794237909,-919.38,0.00012635,2]
[399874702,1766794237921,-873.39,0.00012635,2]
[399874703,1766794238213,-93844.9943089,0.00012635,2]
[399874704,1766794238228,-456.2420658,0.00012635,2]
[399874706,1766794238240,-4890.340393,0.00012635,2]
[399874722,1766794239926,-1445.71575281,0.00012635,2]
[399874724,1766794240095,-969.82114127,0.00012635,2]
[399874725,1766794240107,-1292.073398,0.00012635,2]
[399874728,1766794240424,-612910.39348441,0.00012635,2]
[399874730,1766794240434,-5910.8189,0.00012636,2]
[399874731,1766794240444,-1629.6481,0.00012636,2]
[399874732,1766794240454,-494.664,0.00012636,2]
[399874733,1766794240463,-10088.50240883,0.00012668,2]
[399874734,1766794240473,-199.39689062,0.00012684,2]
[399874735,1766794240482,-323.96124629,0.00012735,2]
[399874736,1766794240492,-500.0,0.00012735,2]
[399874737,1766794240502,-194.01575573,0.00012735,2]
[399874738,1766794240512,-500.0,0.00012735,2]
[399874739,1766794240521,-333.09047513,0.00012735,2]
[399874740,1766794240531,-500.0,0.00012735,2]
[399874741,1766794240540,-311.735,0.00012735,2]
[399874742,1766794240551,-166.66,0.00012768,2]
[399874743,1766794240560,-644.75,0.00012784,2]
[399874744,1766794240570,-166.66,0.00012988,2]
[399874745,1766794240579,-10088.50240882,0.00013138,2]
[399874746,1766794240590,-644.75,0.0001316,2]
[399874747,1766794240600,-166.66,0.00013208,2]
[399874748,1766794240610,-300.0,0.00013287,2]
[399874749,1766794240619,-380.88812859,0.00013287,2]
[399874750,1766794240629,-300.0,0.00013371,2]
[399874751,1766794240639,-250.0,0.00013371,2]
[399874752,1766794240649,-166.66,0.00013428,2]
[399874753,1766794240659,-644.75,0.00013536,2]
[399874754,1766794240670,-10088.50240882,0.00013608,2]
[399874755,1766794240680,-5163.00261521,0.00013637,2]
[399874756,1766794240690,-532.85,0.00013699,2]
[399874757,1766794240700,-1387.97,0.00013728,2]
[399874758,1766794240710,-255.0,0.00013733,2]
[399874759,1766794240719,-420.0,0.00013859,2]
[399874760,1766794240729,-420.0,0.00013859,2]
[399874761,1766794240739,-1680.0,0.00013896,2]
[399874762,1766794240749,-500.0,0.00013912,2]
[399874763,1766794240759,-644.75,0.00013912,2]
[399874764,1766794240769,-1475.4671258,0.0001407,2]
[399874765,1766794240779,-10088.50240882,0.00014079,2]
[399874766,1766794240789,-150.0,0.00014099,2]
[399874767,1766794240799,-1000.0,0.0001417,2]
[399874768,1766794240809,-1000.0,0.0001417,2]
[399874769,1766794240819,-644.75,0.00014288,2]
[399874770,1766794240828,-1000.0,0.0001437,2]
[399874771,1766794240838,-500.0,0.00014373,2]
[399874772,1766794240848,-276.52041223,0.00014373,2]
[399874773,1766794240858,-339.47657605,0.00014373,2]
[399874774,1766794240868,-500.0,0.00014373,2]
[399874775,1766794240878,-500.0,0.00014373,2]
[399874776,1766794240887,-297.9094407,0.00014396,2]
[399874777,1766794240897,-10088.50240882,0.00014549,2]
[399874778,1766794240907,-1000.0,0.0001467,2]
[399874779,1766794240917,-157.86513217,0.00014673,2]
[399874780,1766794240926,-354.49633653,0.00014703,2]
[399874781,1766794240935,-1000.0,0.00014921,2]
[399874782,1766794240945,-500.0,0.00014921,2]
[399874783,1766794240954,-502.55443721,0.00014921,2]
[399874784,1766794240964,-433.0,0.00014933,2]
[399874785,1766794240975,-1000.0,0.0001497,2]
[399874786,1766794240985,-10088.50240882,0.00015019,2]
[399874787,1766794240995,-1198.0,0.00015064,2]
[399874788,1766794241004,-912.0,0.00015064,2]
[399874789,1766794241015,-4808.0,0.00015064,2]
[399874790,1766794241025,-6535.0,0.00015064,2]
[399874791,1766794241034,-2430.0,0.00015064,2]
[399874792,1766794241043,-150.0,0.00015143,2]
[399874793,1766794241053,-150.0,0.00015143,2]
[399874794,1766794241063,-150.0,0.00015143,2]
[399874795,1766794241073,-150.0,0.00015143,2]
[399874796,1766794241083,-150.0,0.00015143,2]
[399874797,1766794241093,-150.0,0.00015143,2]
[399874798,1766794241102,-150.0,0.00015143,2]
[399874799,1766794241112,-150.0,0.00015143,2]
[399874800,1766794241121,-150.0,0.00015143,2]
[399874801,1766794241131,-150.0,0.00015143,2]
[399874802,1766794241141,-150.0,0.00015143,2]
[399874803,1766794241151,-3458.0,0.00015143,2]
[399874804,1766794241161,-612.0,0.00015143,2]
[399874805,1766794241170,-1610.0,0.00015143,2]
[399874806,1766794241180,-1327.0,0.00015143,2]
[399874807,1766794241189,-1263.0,0.00015143,2]
[399874808,1766794241199,-432.0,0.00015143,2]
[399874809,1766794241209,-412.67,0.00015143,2]
[399874810,1766794241218,-462.0,0.00015205,2]
[399874811,1766794241229,-587.0,0.00015205,2]
[399874812,1766794241239,-3405.0,0.0001526,2]
[399874813,1766794241249,-2351.0,0.00015286,2]
[399874814,1766794241259,-150.0,0.00015288,2]
[399874815,1766794241270,-150.0,0.00015288,2]
[399874816,1766794241280,-230.12358953,0.00015288,2]
[399874817,1766794241290,-150.00000001,0.00015288,2]
[399874818,1766794241305,-150.00000001,0.00015288,2]
[399874819,1766794241315,-150.00000001,0.00015288,2]
[399874820,1766794241325,-299.99,0.0001531,2]
[399874821,1766794241334,-9999.99,0.0001531,2]
[399874822,1766794241346,-347.05,0.0001531,2]
[399874823,1766794241357,-5278.37,0.0001531,2]
[399874824,1766794241366,-150.99,0.0001531,2]
[399874825,1766794241378,-9999.99,0.0001531,2]
[399874826,1766794241388,-294.76,0.0001531,2]
[399874827,1766794241398,-9999.99,0.0001531,2]
[399874828,1766794241408,-14850.43,0.0001531,2]
[399874829,1766794241418,-178.57,0.0001537,2]
[399874830,1766794241428,-339.98,0.0001537,2]
[399874831,1766794241439,-178.57,0.0001537,2]
[399874832,1766794241449,-178.57,0.00015378,2]
[399874833,1766794241459,-412.67,0.00015417,2]
[399874834,1766794241469,-1387.97,0.00015445,2]
[399874835,1766794241480,-1500.0,0.00015468,2]
[399874836,1766794241490,-10088.50240882,0.00015489,2]
[399874837,1766794241499,-412.67,0.00015691,2]
[399874838,1766794241509,-501.02283993,0.00015829,2]
[399874839,1766794241519,-178.57,0.00015878,2]
[399874840,1766794241528,-150.0,0.00015913,2]
[399874841,1766794241538,-10088.50240882,0.0001596,2]
[399874842,1766794241547,-412.67,0.00015965,2]
[399874843,1766794241557,-500.91892275,0.00015973,2]
[399874844,1766794241566,-500.0,0.00015973,2]
[399874845,1766794241576,-500.0,0.00015973,2]
[399874846,1766794241586,-500.0,0.00015973,2]
[399874847,1766794241596,-500.0,0.00015973,2]
[399874848,1766794241605,-500.0,0.00015973,2]
[399874849,1766794241615,-500.0,0.00015973,2]
[399874850,1766794241625,-500.0,0.00015973,2]
[399874851,1766794241635,-500.89276948,0.00015973,2]
[399874852,1766794241645,-500.0,0.00015973,2]
[399874853,1766794241654,-500.0,0.00015973,2]
[399874854,1766794241664,-501.32987729,0.00015973,2]
[399874855,1766794241674,-500.0,0.00015973,2]
[399874856,1766794241684,-500.0,0.00015973,2]
[399874857,1766794241693,-500.0,0.00015973,2]
[399874858,1766794241703,-500.0,0.00015973,2]
[399874859,1766794241712,-500.0,0.00015973,2]
[399874860,1766794241722,-534.79304432,0.00015973,2]
[399874861,1766794241731,-500.0,0.00015973,2]
[399874862,1766794241741,-500.0,0.00015973,2]
[399874863,1766794241751,-500.0,0.00015973,2]
[399874864,1766794241761,-500.0,0.00015973,2]
[399874865,1766794241770,-500.0,0.00015973,2]
[399874866,1766794241780,-500.0,0.00015973,2]
[399874867,1766794241790,-500.0,0.00015973,2]
[399874868,1766794241800,-500.0,0.00015973,2]
[399874869,1766794241810,-500.0,0.00015973,2]
[399874870,1766794241820,-500.0,0.00015973,2]
[399874871,1766794241829,-500.76503002,0.00015973,2]
[399874872,1766794241839,-500.0,0.00015973,2]
[399874873,1766794241849,-500.0,0.00015973,2]
[399874874,1766794241859,-500.0,0.00015973,2]
[399874875,1766794241869,-500.0,0.00015973,2]
[399874876,1766794241879,-500.0,0.00015973,2]
[399874877,1766794241889,-500.0,0.00015973,2]
[399874878,1766794241900,-500.0,0.00015973,2]
[399874879,1766794241910,-500.0,0.00015973,2]
[399874880,1766794241920,-500.0,0.00015973,2]
[399874881,1766794241930,-500.0,0.00015973,2]
[399874882,1766794241940,-500.0,0.00015973,2]
[399874883,1766794241950,-500.0,0.00015973,2]
[399874884,1766794241968,-500.0,0.00015973,2]
[399874885,1766794241990,-2000.0,0.00016,2]
[399874886,1766794242011,-2000.0,0.0001601,2]
[399874887,1766794242030,-731.69372668,0.00016016,2]
[399874888,1766794242051,-2006.949461,0.0001602,2]
[399874889,1766794242073,-578.20924308,0.00016149,2]
[399874890,1766794242085,-496.47127164,0.00016149,2]
[399874891,1766794242096,-250.0,0.00016149,2]
[399874892,1766794242108,-250.0,0.00016149,2]
[399874893,1766794242119,-500.0,0.00016149,2]
[399874894,1766794242131,-250.0,0.00016149,2]
[399874895,1766794242142,-500.0,0.00016149,2]
[399874896,1766794242153,-250.0,0.00016149,2]
[399874897,1766794242162,-500.0,0.00016149,2]
[399874898,1766794242172,-250.0,0.00016149,2]
[399874899,1766794242183,-500.0,0.00016149,2]
[399874900,1766794242193,-250.0,0.00016149,2]
[399874901,1766794242203,-500.0,0.00016149,2]
[399874902,1766794242213,-500.0,0.00016149,2]
[399874903,1766794242223,-250.0,0.00016149,2]
[399874904,1766794242233,-500.0,0.00016149,2]
[399874905,1766794242243,-500.0,0.00016149,2]
[399874906,1766794242253,-250.0,0.00016149,2]
[399874907,1766794242262,-500.0,0.00016149,2]
[399874908,1766794242272,-500.0,0.00016149,2]
[399874909,1766794242282,-250.0,0.00016149,2]
[399874910,1766794242293,-500.0,0.00016149,2]
[399874911,1766794242305,-500.0,0.00016149,2]
[399874912,1766794242315,-250.0,0.00016149,2]
[399874913,1766794242325,-500.0,0.00016149,2]
[399874914,1766794242335,-500.0,0.00016149,2]
[399874915,1766794242344,-250.0,0.00016149,2]
[399874916,1766794242353,-500.0,0.00016149,2]
[399874917,1766794242363,-500.0,0.00016149,2]
[399874918,1766794242372,-250.0,0.00016149,2]
[399874919,1766794242382,-500.0,0.00016149,2]
[399874920,1766794242392,-500.0,0.00016149,2]
[399874921,1766794242402,-500.0,0.00016149,2]
[399874922,1766794242411,-500.0,0.00016149,2]
[399874923,1766794242421,-500.0,0.00016149,2]
[399874924,1766794242430,-500.0,0.00016149,2]
[399874925,1766794242440,-500.0,0.00016149,2]
[399874926,1766794242450,-500.0,0.00016149,2]
[399874927,1766794242459,-500.0,0.00016149,2]
[399874928,1766794242469,-500.0,0.00016149,2]
[399874929,1766794242479,-500.0,0.00016149,2]
[399874930,1766794242489,-250.0,0.00016149,2]
[399874931,1766794242499,-500.0,0.00016149,2]
[399874932,1766794242508,-250.0,0.00016149,2]
[399874933,1766794242518,-322.6107,0.00016149,2]
[399874934,1766794242528,-454.88526239,0.00016149,2]
[399874935,1766794242538,-250.0,0.00016149,2]
[399874936,1766794242547,-250.0,0.00016149,2]
[399874937,1766794242556,-250.0,0.00016149,2]
[399874938,1766794242566,-250.0,0.00016149,2]
[399874939,1766794242575,-250.0,0.00016149,2]
[399874940,1766794242585,-250.0,0.00016149,2]
[399874941,1766794242595,-250.0,0.00016149,2]
[399874942,1766794242605,-250.0,0.00016149,2]
[399874943,1766794242614,-250.0,0.00016149,2]
[399874944,1766794242624,-500.0,0.00016149,2]
[399874945,1766794242634,-500.0,0.00016149,2]
[399874946,1766794242644,-500.0,0.00016149,2]
[399874947,1766794242653,-500.0,0.00016149,2]
[399874948,1766794242663,-500.0,0.00016149,2]
[399874950,1766794242673,-250.0,0.00016149,2]
[399874951,1766794242683,-500.0,0.00016149,2]
[399874952,1766794242693,-250.0,0.00016149,2]
[399874953,1766794242703,-500.0,0.00016149,2]
[399874954,1766794242725,-250.0,0.00016149,2]
[399874955,1766794242746,-500.0,0.00016149,2]
[399874956,1766794242763,-250.0,0.00016149,2]
[399874957,1766794242775,-500.0,0.00016149,2]
[399874959,1766794242788,-250.0,0.00016149,2]
[399874961,1766794242798,-500.0,0.00016149,2]
[399874963,1766794242808,-250.0,0.00016149,2]
[399874964,1766794242818,-500.0,0.00016149,2]
[399874965,1766794242828,-250.0,0.00016149,2]
[399874966,1766794242838,-250.0,0.00016149,2]
[399874967,1766794242848,-250.0,0.00016149,2]
[399874968,1766794242858,-261.58626416,0.00016149,2]
[399874969,1766794242868,-200.0,0.00016149,2]
[399874970,1766794242878,-207.4,0.00016149,2]
[399874971,1766794242887,-215.0738,0.00016149,2]
[399874972,1766794242897,-223.0315306,0.00016149,2]
[399874973,1766794242908,-231.28369723,0.00016149,2]
[399874974,1766794242917,-239.84119403,0.00016149,2]
[399874975,1766794242927,-248.71531821,0.00016149,2]
[399874976,1766794242937,-257.91778498,0.00016149,2]
[399874977,1766794242946,-267.46074303,0.00016149,2]
[399874978,1766794242956,-377.36930401,0.00016149,2]
[399874979,1766794242966,-178.57,0.00016192,2]
[399874980,1766794242976,-736.0,0.00016222,2]
[399874981,1766794242986,-412.71,0.00016239,2]
[399874982,1766794242996,-1000.0,0.0001637,2]
[399874983,1766794243006,-10088.50240882,0.0001643,2]
[399874984,1766794243015,-438.2,0.00016438,2]
[399874985,1766794243025,-500.0,0.00016438,2]
[399874986,1766794243035,-500.0,0.00016438,2]
[399874987,1766794243045,-500.0,0.00016438,2]
[399874988,1766794243055,-500.0,0.00016438,2]
[399874989,1766794243064,-500.0,0.00016438,2]
[399874990,1766794243074,-500.0,0.00016438,2]
[399874991,1766794243083,-500.0,0.00016438,2]
[399874992,1766794243093,-500.0,0.00016438,2]
[399874993,1766794243104,-500.0,0.00016438,2]
[399874994,1766794243113,-500.0,0.00016438,2]
[399874995,1766794243123,-569.58203715,0.00016438,2]
[399874996,1766794243132,-500.0,0.00016438,2]
[399874997,1766794243142,-500.0,0.00016438,2]
[399874998,1766794243152,-500.0,0.00016438,2]
[399874999,1766794243162,-500.0,0.00016438,2]
[399875000,1766794243172,-500.0,0.00016438,2]
[399875001,1766794243182,-500.0,0.00016438,2]
[399875002,1766794243191,-500.0,0.00016438,2]
[399875003,1766794243201,-500.0,0.00016438,2]
[399875004,1766794243210,-500.0,0.00016438,2]
[399875005,1766794243220,-500.0,0.00016438,2]
[399875006,1766794243230,-500.0,0.00016438,2]
[399875007,1766794243240,-500.0,0.00016438,2]
[399875008,1766794243250,-500.0,0.00016438,2]
[399875009,1766794243260,-500.0,0.00016438,2]
[399875010,1766794243271,-500.0,0.00016438,2]
[399875011,1766794243280,-500.0,0.00016438,2]
[399875012,1766794243290,-500.0,0.00016438,2]
[399875013,1766794243305,-350.0,0.00016438,2]
[399875014,1766794243315,-150.0,0.00016438,2]
[399875015,1766794243324,-500.0,0.00016438,2]
[399875016,1766794243334,-500.0,0.00016438,2]
[399875017,1766794243346,-500.0,0.00016438,2]
[399875018,1766794243356,-500.0,0.00016438,2]
[399875019,1766794243367,-500.0,0.00016438,2]
[399875020,1766794243376,-9989.14,0.00016438,2]
[399875021,1766794243386,-164.56,0.0001644,2]
[399875022,1766794243395,-164.56,0.0001644,2]
[399875023,1766794243405,-164.56,0.0001644,2]
[399875024,1766794243415,-164.56,0.0001644,2]
[399875025,1766794243425,-164.56,0.0001644,2]
[399875026,1766794243435,-150.0,0.00016465,2]
[399875027,1766794243445,-203.08372064,0.00016493,2]
[399875028,1766794243455,-500.47493987,0.00016521,2]
[399875029,1766794243465,-1000.0,0.00016521,2]
[399875030,1766794243474,-500.0,0.00016521,2]
[399875031,1766794243484,-502.36597635,0.00016521,2]
[399875032,1766794243493,-501.62552641,0.00016521,2]
[399875033,1766794243503,-502.51080525,0.00016521,2]
[399875034,1766794243513,-501.09853648,0.00016521,2]
[399875035,1766794243523,-1000.0,0.00016521,2]
[399875036,1766794243532,-500.0,0.00016521,2]
[399875037,1766794243542,-299.72437888,0.00016521,2]
[399875038,1766794243552,-501.55278646,0.00016521,2]
[399875039,1766794243561,-582.06225981,0.00016521,2]
[399875040,1766794243571,-500.0,0.00016521,2]
[399875041,1766794243581,-501.54516283,0.00016521,2]
[399875042,1766794243591,-501.27464861,0.00016521,2]
[399875043,1766794243601,-501.47129167,0.00016521,2]
[399875044,1766794243611,-501.64987831,0.00016521,2]
[399875045,1766794243621,-500.0,0.00016521,2]
[399875046,1766794243631,-500.64440302,0.00016521,2]
[399875047,1766794243641,-501.59555949,0.00016521,2]
[399875048,1766794243651,-1000.0,0.00016521,2]
[399875049,1766794243661,-502.47387917,0.00016521,2]
[399875050,1766794243671,-502.41625795,0.00016521,2]
[399875051,1766794243680,-500.63339465,0.00016521,2]
[399875052,1766794243690,-501.13015343,0.00016521,2]
[399875053,1766794243700,-1000.0,0.00016521,2]
[399875054,1766794243710,-501.52379786,0.00016521,2]
[399875055,1766794243720,-1000.0,0.00016521,2]
[399875056,1766794243730,-502.60700884,0.00016521,2]
[399875057,1766794243740,-500.56640206,0.00016521,2]
[399875058,1766794243750,-501.68433486,0.00016521,2]
[399875059,1766794243760,-501.45598765,0.00016521,2]
[399875060,1766794243770,-502.12022851,0.00016521,2]
[399875061,1766794243779,-501.50162149,0.00016521,2]
[399875062,1766794243789,-501.11243269,0.00016521,2]
[399875063,1766794243799,-501.87578424,0.00016521,2]
[399875064,1766794243808,-1000.0,0.00016521,2]
[399875065,1766794243819,-151.55934747,0.00016541,2]
[399875066,1766794243828,-653.33262019,0.0001666,2]
[399875067,1766794243838,-157.86513217,0.00016679,2]
[399875068,1766794243847,-265.0,0.00016681,2]
[399875069,1766794243858,-3292.0,0.00016815,2]
[399875070,1766794243868,-1113.30940197,0.0001683,2]
[399875071,1766794243877,-203.59064575,0.0001684,2]
[399875072,1766794243887,-200.0,0.00016863,2]
[399875073,1766794243897,-200.0,0.00016864,2]
[399875074,1766794243907,-354.49633653,0.0001687,2]
[399875075,1766794243916,-10088.50240882,0.000169,2]
[399875076,1766794243926,-228.55347716,0.000169,2]
[399875077,1766794243935,-228.26447957,0.000169,2]
[399875078,1766794243945,-1000.0,0.0001697,2]
[399875079,1766794243956,-500.0,0.0001697,2]
[399875080,1766794243966,-1000.0,0.0001697,2]
[399875084,1766794244165,-500.0,0.0001697,2]
[399875085,1766794244175,-1000.0,0.0001697,2]
[399875086,1766794244185,-802.46796525,0.0001697,2]
[399875087,1766794244195,-1000.0,0.0001697,2]
[399875088,1766794244205,-500.0,0.0001697,2]
[399875089,1766794244214,-150.12296232,0.00016973,2]
[399875090,1766794244224,-163.53521313,0.00016973,2]
[399875091,1766794244234,-150.0,0.00016973,2]
[399875092,1766794244243,-150.0,0.00016973,2]
[399875093,1766794244253,-150.00000001,0.00016986,2]
[399875094,1766794244263,-150.0,0.00016986,2]
[399875095,1766794244272,-164.56,0.00016987,2]
[399875096,1766794244282,-164.56,0.0001699,2]
[399875097,1766794244291,-164.56,0.0001699,2]
[399875098,1766794244301,-164.56,0.0001699,2]
[399875099,1766794244310,-49442.2523486,0.00016997,2]
[399875100,1766794244320,-300.0,0.00016999,2]
[399875101,1766794244329,-300.0,0.00016999,2]
[399875102,1766794244344,-300.0,0.00016999,2]
[399875103,1766794244354,-300.0,0.00016999,2]
[399875104,1766794244364,-300.0,0.00016999,2]
[399875105,1766794244373,-300.0,0.00016999,2]
[399875106,1766794244384,-300.0,0.00016999,2]
[399875107,1766794244393,-500.0,0.00016999,2]
[399875108,1766794244403,-500.0,0.00016999,2]
[399875109,1766794244412,-500.0,0.00016999,2]
[399875110,1766794244423,-500.0,0.00016999,2]
[399875111,1766794244432,-500.0,0.00016999,2]
[399875112,1766794244442,-500.0,0.00016999,2]
[399875113,1766794244451,-1023252.82935297,0.00017,2]
[399875117,1766794245883,-564.0,0.00015064,2]
[399875118,1766794245895,-178.57,0.0001537,2]
[399875119,1766794245905,-151.0,0.00016047,2]
[399875120,1766794245915,-150.0,0.00016438,2]
[399875121,1766794245926,-150.0,0.00016465,2]
[399875122,1766794245937,-200.0,0.00016493,2]
[399875123,1766794245947,-2238.14376668,0.000169,2]
[399875124,1766794245957,-203.59064576,0.00016955,2]
[399875125,1766794245967,-769.64558756,0.00017,2]
[399875205,1766794336071,500.0,0.0003,120]
[399875213,1766794346650,457.20765599,0.0003,120]
[399875214,1766794359721,500.0,0.0003,120]
[399875220,1766795046898,999.0,0.00013214,3]
[399875235,1766795431916,-511.061172,0.00012196,2]
[399875238,1766795431927,-188.938828,0.00012258,2]
[399875239,1766795431940,-111.061172,0.00012258,2]
[399875240,1766795431951,-240.82764264,0.00012434,2]
[399875241,1766795431961,-220.54331013,0.000125,2]
[399875242,1766795431971,-1134.06379962,0.00012534,2]
[399875243,1766795431984,-65.93620038,0.00012534,2]
[399875244,1766795431994,-300.0,0.00012534,2]
[399875245,1766795432004,-1069.16675352,0.00012535,2]
[399875246,1766795432016,-4841.65214648,0.00012535,2]
[399875247,1766795432026,-1629.6481,0.00012535,2]
[399875248,1766795432036,-235.34577217,0.00012576,2]
[399875249,1766795432047,-3174.66670034,0.00012576,2]
[399875250,1766795432056,-956.345,0.00012633,2]
[399875251,1766795432066,-10088.50240883,0.00012676,2]
[399875252,1766795432076,-1653.39,0.00012776,2]
[399875253,1766795432086,-89.98652806,0.0001283,2]
[399875254,1766795432102,-60.01347194,0.0001283,2]
[399875255,1766795432112,-10541.65733581,0.00012831,2]
[399875256,1766795432124,-300.0,0.00012831,2]
[399875257,1766795432135,-999.0,0.00012831,2]
[399875258,1766795432148,-526.8195669,0.00012831,2]
[399875259,1766795432164,-734.27815119,0.00012831,2]
[399875260,1766795432180,-2376.13,0.00012831,2]
[399875261,1766795432192,-1104.82449094,0.00012831,2]
[399875262,1766795432204,-748.69638418,0.00012831,2]
[399875275,1766795438064,-280.80017013,0.00012831,2]
[399875276,1766795438078,-540.01220046,0.00012831,2]
[399875277,1766795438090,-822.627884,0.00012831,2]
[399875278,1766795438103,-16006.01381639,0.00012831,2]
[399875279,1766795438114,-5006.4987677,0.00012996,2]
[399875280,1766795438124,-3174.66670026,0.00013056,2]
[399875281,1766795438134,-5589.87841925,0.00013145,2]
[399875282,1766795438147,-4498.62398957,0.00013145,2]
[399875283,1766795438157,-300.0,0.0001345,2]
[399875284,1766795438168,-200.0,0.00013477,2]
[399875285,1766795438177,-1000.0,0.000135,2]
[399875286,1766795438187,-2637.62239683,0.00013533,2]
[399875287,1766795438204,-521.99010034,0.00013533,2]
[399875288,1766795438215,-3174.66670026,0.00013537,2]
[399875289,1766795438225,-1312.81453758,0.00013615,2]
[399875290,1766795438289,-3729.44527212,0.00013615,2]
[399875306,1766795440210,-3561.99998,0.00013615,2]
[399875307,1766795440514,-1484.24261912,0.00013615,2]
[399875308,1766795440524,-420.0,0.00013752,2]
[399875309,1766795440534,-1680.0,0.00013787,2]
[399875310,1766795440549,-255.0,0.00013933,2]
[399875311,1766795440560,-3174.66670026,0.00014017,2]
[399875312,1766795440569,-10088.50240882,0.00014084,2]
[399875313,1766795440579,-1000.0,0.0001417,2]
[399875314,1766795440589,-1475.4671258,0.0001417,2]
[399875315,1766795440598,-500.0,0.0001417,2]
[399875316,1766795440608,-1000.0,0.0001437,2]
[399875317,1766795440618,-500.0,0.00014373,2]
[399875318,1766795440629,-500.0,0.00014373,2]
[399875319,1766795440639,-339.47657605,0.00014373,2]
[399875320,1766795440648,-276.52041223,0.00014373,2]
[399875321,1766795440658,-500.0,0.00014373,2]
[399875322,1766795440668,-208.72920813,0.00014455,2]
[399875323,1766795440678,-3174.66670026,0.00014498,2]
[399875325,1766795440688,-150.99,0.00014504,2]
[399875327,1766795440698,-5278.37,0.00014504,2]
[399875328,1766795440707,-12287.56,0.00014504,2]
[399875330,1766795440717,-14850.43,0.00014504,2]
[399875333,1766795440730,-9999.99,0.00014504,2]
[399875334,1766795440739,-294.76,0.00014504,2]
[399875335,1766795440749,-9999.99,0.00014504,2]
[399875336,1766795440759,-347.05,0.00014504,2]
[399875337,1766795440769,-10088.50240882,0.00014553,2]
[399875338,1766795440779,-289.4,0.00014574,2]
[399875339,1766795440789,-1000.0,0.0001467,2]
[399875340,1766795440798,-502.55443721,0.00014921,2]
[399875341,1766795440808,-1000.0,0.00014921,2]